Workbook

Sheet N=9,10
H1: 分散 | I1: 不偏分散
H2: N=10 | I2: N=9 | L2: N=10
G3: 全数の分散値 | H3: N=10での平均値 | I3: N=9での平均値 | K3: 全数の平均値 | L3: N=10での平均
B4: No | C4: 乱数 | D4: 乱数X10 | F4: 対象数列 | G4: =VARPA(F5:F344) -> 8.000971501 | H4: =AVERAGE(H5:H5004) -> 7.469938301 | I4: =AVERAGE(I5:I5004) -> 8.299931446 | K4: =AVERAGE(F5:F5004) -> 5.094198344 | L4: =AVERAGE(L5:L5004) -> 5.094198344
B5: 1 | C5: =RAND() -> 0.7614870004 | D5: =C5*10 -> 7.614870004 | F5: 6.068295088 | H5: =VARPA(F5:F14) -> 6.08245096 | I5: =VARA(F5:F14) -> 6.758278844 | L5: =AVERAGE(F5:F14) -> 3.953434325
B6: 2 | C6: 0.9648428584 | D6: =C6*10 -> 9.648428584 | F6: 0.8005871366
B7: 3 | C7: 0.7079318673 | D7: 7.079318673 | F7: 1.061005693
B8: 4 | C8: 0.2249951456 | D8: 2.249951456 | F8: 6.591524623
B9: 5 | C9: 0.8872992485 | D9: 8.872992485 | F9: 4.977970901
B10: 6 | C10: 0.8170244417 | D10: 8.170244417 | F10: 7.197551266
B11: 7 | C11: 0.9484512526 | D11: 9.484512526 | F11: 1.770420242
B12: 8 | C12: =RAND() -> 0.315688389 | D12: 3.15688389 | F12: 3.386454664
B13: 9 | C13: 0.9986322222 | D13: 9.986322222 | F13: 1.157063115
B14: 10 | C14: 0.9084571359 | D14: 9.084571359 | F14: 6.523470522
B15: 11 | C15: 0.3195715458 | D15: 3.195715458 | F15: 1.80334882 | H15: =VARPA(F15:F24) -> 8.056227711 | I15: =VARA(F15:F24) -> 8.951364124 | L15: =AVERAGE(F15:F24) -> 5.190126743
B16: 12 | C16: 0.941411875 | D16: 9.41411875 | F16: 4.387289059
B17: 13 | C17: 0.2473682143 | D17: 2.473682143 | F17: 6.07370791
B18: 14 | C18: 0.8562908307 | D18: 8.562908307 | F18: 6.085422544
B19: 15 | C19: 0.6312784787 | D19: 6.312784787 | F19: 2.086510248
B20: 16 | C20: 0.8005440951 | D20: 8.005440951 | F20: 6.756366221
B21: 17 | C21: 0.4967740936 | D21: 4.967740936 | F21: 7.247114169
B22: 18 | C22: 0.5679046505 | D22: 5.679046505 | F22: 0.2701264539
B23: 19 | C23: 0.8661988158 | D23: 8.661988158 | F23: 7.341434974
B24: 20 | C24: 0.982225181 | D24: 9.82225181 | F24: 9.849947034
B25: 21 | C25: 0.5531928736 | D25: 5.531928736 | F25: 7.677463449 | H25: =VARPA(F25:F34) -> 7.442881056 | I25: =VARA(F25:F34) -> 8.26986784 | L25: =AVERAGE(F25:F34) -> 6.169659294
B26: 22 | C26: 0.2318914061 | D26: 2.318914061 | F26: 6.611101578
B27: 23 | C27: 0.4097008457 | D27: 4.097008457 | F27: 9.356719548
B28: 24 | C28: 0.1126064181 | D28: 1.126064181 | F28: 2.089009377
B29: 25 | C29: 0.8718321027 | D29: 8.718321027 | F29: 8.361611359
B30: 26 | C30: 0.2651749867 | D30: 2.651749867 | F30: 4.273421707
B31: 27 | C31: 0.7434423817 | D31: 7.434423817 | F31: 7.700561284
B32: 28 | C32: 0.450317936 | D32: 4.50317936 | F32: 9.761259867
B33: 29 | C33: 0.9707934273 | D33: 9.707934273 | F33: 2.407240892
B34: 30 | C34: 0.8275843713 | D34: 8.275843713 | F34: 3.458203885
B35: 31 | C35: 0.9599586495 | D35: 9.599586495 | F35: 7.236960937 | H35: =VARPA(F35:F44) -> 4.231596037 | I35: =VARA(F35:F44) -> 4.701773374 | L35: =AVERAGE(F35:F44) -> 4.670509766
B36: 32 | C36: 0.4433051364 | D36: 4.433051364 | F36: 5.154503907
B37: 33 | C37: 0.1507437911 | D37: 1.507437911 | F37: 7.645522227
B38: 34 | C38: 0.1824592251 | D38: 1.824592251 | F38: 5.113941677
B39: 35 | C39: 0.6427253216 | D39: 6.427253216 | F39: 3.512085422
B40: 36 | C40: 0.8484970767 | D40: 8.484970767 | F40: 3.534554914
B41: 37 | C41: 0.4795157298 | D41: 4.795157298 | F41: 5.317097559
B42: 38 | C42: 0.8455100292 | D42: 8.455100292 | F42: 5.87598325
B43: 39 | C43: 0.3090022009 | D43: 3.090022009 | F43: 3.032785828
B44: 40 | C44: 0.02482888306 | D44: 0.2482888306 | F44: 0.2816619397
B45: 41 | C45: 0.3667578148 | D45: 3.667578148 | F45: 7.507233883 | H45: =VARPA(F45:F54) -> 4.192469053 | I45: =VARA(F45:F54) -> 4.658298947 | L45: =AVERAGE(F45:F54) -> 4.592671001
B46: 42 | C46: 0.9966701733 | D46: 9.966701733 | F46: 5.637362432
B47: 43 | C47: 0.979039632 | D47: 9.79039632 | F47: 3.87697342
B48: 44 | C48: 0.06977124362 | D48: 0.6977124362 | F48: 4.162673211
B49: 45 | C49: 0.3904930818 | D49: 3.904930818 | F49: 0.4020415449
B50: 46 | C50: 0.9876790451 | D50: 9.876790451 | F50: 5.364017257
B51: 47 | C51: 0.4340644568 | D51: 4.340644568 | F51: 4.793058586
B52: 48 | C52: 0.2669332355 | D52: 2.669332355 | F52: 6.781193996
B53: 49 | C53: 0.2093207195 | D53: 2.093207195 | F53: 1.821517078
B54: 50 | C54: 0.8594519373 | D54: 8.594519373 | F54: 5.580638604
B55: 51 | C55: 0.009370175797 | D55: 0.09370175797 | F55: 8.300043006 | H55: =VARPA(F55:F64) -> 4.883216265 | I55: =VARA(F55:F64) -> 5.42579585 | L55: =AVERAGE(F55:F64) -> 3.453245166
B56: 52 | C56: 0.3767646941 | D56: 3.767646941 | F56: 0.4924644348
B57: 53 | C57: 0.3714346554 | D57: 3.714346554 | F57: 3.322629636
B58: 54 | C58: 0.6097628692 | D58: 6.097628692 | F58: 6.42011362
B59: 55 | C59: 0.2401222663 | D59: 2.401222663 | F59: 1.940043467
B60: 56 | C60: 0.2333628864 | D60: 2.333628864 | F60: 2.930460261
B61: 57 | C61: 0.6212819139 | D61: 6.212819139 | F61: 2.516265201
B62: 58 | C62: 0.7165567406 | D62: 7.165567406 | F62: 2.993433604
B63: 59 | C63: 0.2433767921 | D63: 2.433767921 | F63: 1.529576675
B64: 60 | C64: 0.7242384706 | D64: 7.242384706 | F64: 4.087421758
B65: 61 | C65: 0.3922838716 | D65: 3.922838716 | F65: 6.472175729 | H65: =VARPA(F65:F74) -> 6.600717602 | I65: =VARA(F65:F74) -> 7.334130668 | L65: =AVERAGE(F65:F74) -> 5.689053011
B66: 62 | C66: 0.6940652535 | D66: 6.940652535 | F66: 2.912471061
B67: 63 | C67: 0.09513494949 | D67: 0.9513494949 | F67: 2.342234306
B68: 64 | C68: 0.9448981532 | D68: 9.448981532 | F68: 4.613390656
B69: 65 | C69: 0.1781109428 | D69: 1.781109428 | F69: 9.332951346
B70: 66 | C70: 0.09288443678 | D70: =C70*10 -> 0.9288443678 | F70: 2.185475758
B71: 67 | C71: 0.8361115628 | D71: 8.361115628 | F71: 5.780995168
B72: 68 | C72: 0.5400838888 | D72: 5.400838888 | F72: 9.622546323
B73: 69 | C73: 0.6926776306 | D73: 6.926776306 | F73: 7.752416557
B74: 70 | C74: 0.7256560115 | D74: 7.256560115 | F74: 5.875873207
B75: 71 | C75: 0.185880069 | D75: 1.85880069 | F75: 4.453492153 | H75: =VARPA(F75:F84) -> 4.447565643 | I75: =VARA(F75:F84) -> 4.941739604 | L75: =AVERAGE(F75:F84) -> 6.236583973
B76: 72 | C76: =RAND() -> 0.8583532654 | D76: 8.583532654 | F76: 6.956279632
B77: 73 | C77: 0.1379278138 | D77: 1.379278138 | F77: 6.868491696
B78: 74 | C78: 0.3492092089 | D78: 3.492092089 | F78: 6.94640173
B79: 75 | C79: 0.5486381883 | D79: 5.486381883 | F79: 9.035355516
B80: 76 | C80: 0.5805053311 | D80: 5.805053311 | F80: 7.492718582
B81: 77 | C81: 0.5170098302 | D81: 5.170098302 | F81: 4.379610612
B82: 78 | C82: 0.6492046235 | D82: 6.492046235 | F82: 1.768035811
B83: 79 | C83: 0.5256601596 | D83: 5.256601596 | F83: 8.82383646
B84: 80 | C84: 0.09154971114 | D84: 0.9154971114 | F84: 5.641617539
B85: 81 | C85: 0.129877933 | D85: 1.29877933 | F85: 9.036702897 | H85: =VARPA(F85:F94) -> 8.805545227 | I85: =VARA(F85:F94) -> 9.783939142 | L85: =AVERAGE(F85:F94) -> 4.688973176
B86: 82 | C86: 0.8360104352 | D86: 8.360104352 | F86: 2.42357416
B87: 83 | C87: 0.8663292527 | D87: 8.663292527 | F87: 6.993233969
B88: 84 | C88: 0.9967567553 | D88: 9.967567553 | F88: 9.239074467
B89: 85 | C89: 0.3781293652 | D89: 3.781293652 | F89: 0.04717618517
B90: 86 | C90: 0.9329095715 | D90: 9.329095715 | F90: 2.152380584
B91: 87 | C91: 0.9658813916 | D91: 9.658813916 | F91: 4.03364071
B92: 88 | C92: 0.7712525036 | D92: 7.712525036 | F92: 4.160944512
B93: 89 | C93: 0.1193174987 | D93: 1.193174987 | F93: 6.540835084
B94: 90 | C94: 0.6599450693 | D94: 6.599450693 | F94: 2.262169195
B95: 91 | C95: 1.915442074e-05 | D95: 0.0001915442074 | F95: 9.963073139 | H95: =VARPA(F95:F104) -> 5.564898614 | I95: =VARA(F95:F104) -> 6.183220682 | L95: =AVERAGE(F95:F104) -> 6.680237874
B96: 92 | C96: 0.8937088778 | D96: 8.937088778 | F96: 8.065231639
B97: 93 | C97: 0.9937072424 | D97: 9.937072424 | F97: 4.154836007
B98: 94 | C98: 0.7558523217 | D98: 7.558523217 | F98: 6.707079989
B99: 95 | C99: 0.38825713 | D99: 3.8825713 | F99: 9.819075466
B100: 96 | C100: 0.08292343713 | D100: 0.8292343713 | F100: 4.437503294
B101: 97 | C101: 0.5408009846 | D101: 5.408009846 | F101: 6.264298099
B102: 98 | C102: 0.4840300001 | D102: 4.840300001 | F102: 7.175780207
B103: 99 | C103: 0.17193109 | D103: 1.7193109 | F103: 2.250371002
B104: 100 | C104: 0.1888627589 | D104: 1.888627589 | F104: 7.965129899
B105: 101 | C105: 0.06266532045 | D105: 0.6266532045 | F105: 4.570691462 | H105: =VARPA(F105:F114) -> 7.614999182 | I105: =VARA(F105:F114) -> 8.461110203 | L105: =AVERAGE(F105:F114) -> 5.370044247
B106: 102 | C106: 0.4633540818 | D106: 4.633540818 | F106: 2.719949623
B107: 103 | C107: 0.8340881749 | D107: 8.340881749 | F107: 3.333318482
B108: 104 | C108: 0.9609304333 | D108: 9.609304333 | F108: 0.1121003101
B109: 105 | C109: 0.001027630474 | D109: 0.01027630474 | F109: 5.485207359
B110: 106 | C110: 0.05832762229 | D110: 0.5832762229 | F110: 8.540679609
B111: 107 | C111: 0.9715314102 | D111: 9.715314102 | F111: 9.371400401
B112: 108 | C112: 0.9815681269 | D112: 9.815681269 | F112: 8.544721557
B113: 109 | C113: 0.1079315707 | D113: 1.079315707 | F113: 6.010355365
B114: 110 | C114: 0.5982734967 | D114: 5.982734967 | F114: 5.012018301
B115: 111 | C115: 0.1109934722 | D115: 1.109934722 | F115: 8.569528481 | H115: =VARPA(F115:F124) -> 5.367574674 | I115: =VARA(F115:F124) -> 5.96397186 | L115: =AVERAGE(F115:F124) -> 7.117770935
B116: 112 | C116: 0.3471449714 | D116: 3.471449714 | F116: 8.856162547
B117: 113 | C117: 0.1374994194 | D117: 1.374994194 | F117: 6.267003931
B118: 114 | C118: 0.8787693444 | D118: 8.787693444 | F118: 8.558820887
B119: 115 | C119: 0.8465571711 | D119: 8.465571711 | F119: 1.519271689
B120: 116 | C120: 0.1010550371 | D120: 1.010550371 | F120: 7.784929535
B121: 117 | C121: 0.9115371253 | D121: 9.115371253 | F121: 9.350517972
B122: 118 | C122: 0.6683307964 | D122: 6.683307964 | F122: 4.611024804
B123: 119 | C123: 0.05576690387 | D123: 0.5576690387 | F123: 8.744910801
B124: 120 | C124: 0.3305324819 | D124: 3.305324819 | F124: 6.915538707
B125: 121 | C125: 0.3638374523 | D125: 3.638374523 | F125: 9.495015781 | H125: =VARPA(F125:F134) -> 9.252438436 | I125: =VARA(F125:F134) -> 10.28048715 | L125: =AVERAGE(F125:F134) -> 5.53427707
B126: 122 | C126: 0.3014178181 | D126: 3.014178181 | F126: 4.603447848
B127: 123 | C127: 0.02047466816 | D127: 0.2047466816 | F127: 1.273127035
B128: 124 | C128: 0.3031294076 | D128: 3.031294076 | F128: 8.730080224
B129: 125 | C129: 0.04959484368 | D129: 0.4959484368 | F129: 7.257373338
B130: 126 | C130: 0.6391254555 | D130: 6.391254555 | F130: 7.054127716
B131: 127 | C131: 0.8937306628 | D131: 8.937306628 | F131: 0.06441777502
B132: 128 | C132: 0.4259359885 | D132: 4.259359885 | F132: 6.124234217
B133: 129 | C133: 0.3347138419 | D133: 3.347138419 | F133: 7.819948083
B134: 130 | C134: 0.9793319283 | D134: =C134*10 -> 9.793319283 | F134: 2.920998687
B135: 131 | C135: 0.8208409553 | D135: 8.208409553 | F135: 0.7168935555 | H135: =VARPA(F135:F144) -> 8.506804537 | I135: =VARA(F135:F144) -> 9.452005041 | L135: =AVERAGE(F135:F144) -> 4.662679591
B136: 132 | C136: 0.4312488634 | D136: 4.312488634 | F136: 0.7231235675
B137: 133 | C137: 0.3284170651 | D137: 3.284170651 | F137: 6.920072691
B138: 134 | C138: 0.4485584162 | D138: 4.485584162 | F138: 6.059649507
B139: 135 | C139: 0.4491601816 | D139: 4.491601816 | F139: 2.382847791
B140: 136 | C140: =RAND() -> 0.4183527772 | D140: 4.183527772 | F140: 9.619428702
B141: 137 | C141: 0.3920266818 | D141: 3.920266818 | F141: 8.344891334
B142: 138 | C142: 0.3913561652 | D142: 3.913561652 | F142: 3.913407773
B143: 139 | C143: 0.8320841304 | D143: 8.320841304 | F143: 2.950101009
B144: 140 | C144: 0.2140564443 | D144: 2.140564443 | F144: 4.996379978
B145: 141 | C145: 0.4355242022 | D145: 4.355242022 | F145: 9.113628124 | H145: =VARPA(F145:F154) -> 7.844789308 | I145: =VARA(F145:F154) -> 8.716432564 | L145: =AVERAGE(F145:F154) -> 5.429685122
B146: 142 | C146: 0.1709440248 | D146: 1.709440248 | F146: 5.100420875
B147: 143 | C147: 0.2948398892 | D147: 2.948398892 | F147: 9.949224521
B148: 144 | C148: 0.4949236043 | D148: 4.949236043 | F148: 6.085004558
B149: 145 | C149: 0.8879463412 | D149: 8.879463412 | F149: 3.458363327
B150: 146 | C150: 0.4293387202 | D150: 4.293387202 | F150: 6.575786032
B151: 147 | C151: 0.6875155028 | D151: 6.875155028 | F151: 2.484478791
B152: 148 | C152: 0.3983478878 | D152: 3.983478878 | F152: 0.5790985484
B153: 149 | C153: 0.2712086103 | D153: 2.712086103 | F153: 3.671803131
B154: 150 | C154: 0.3345348843 | D154: 3.345348843 | F154: 7.279043309
B155: 151 | C155: 0.8946495739 | D155: 8.946495739 | F155: 2.128993465 | H155: =VARPA(F155:F164) -> 9.819912969 | I155: =VARA(F155:F164) -> 10.91101441 | L155: =AVERAGE(F155:F164) -> 4.581698066
B156: 152 | C156: 0.9679916629 | D156: 9.679916629 | F156: 9.54290335
B157: 153 | C157: 0.2079831819 | D157: 2.079831819 | F157: 1.283888283
B158: 154 | C158: 0.2416409761 | D158: 2.416409761 | F158: 0.9642470157
B159: 155 | C159: 0.2748404357 | D159: 2.748404357 | F159: 3.254659066
B160: 156 | C160: 0.1663804345 | D160: 1.663804345 | F160: 7.239016292
B161: 157 | C161: 0.9174894533 | D161: 9.174894533 | F161: 5.209671898
B162: 158 | C162: 0.05442085054 | D162: 0.5442085054 | F162: 8.041881877
B163: 159 | C163: 0.07913615708 | D163: 0.7913615708 | F163: 0.7662547585
B164: 160 | C164: 0.0675894868 | D164: 0.675894868 | F164: 7.385464652
B165: 161 | C165: 0.2478906676 | D165: 2.478906676 | F165: 3.923334779 | H165: =VARPA(F165:F174) -> 9.144113711 | I165: =VARA(F165:F174) -> 10.16012635 | L165: =AVERAGE(F165:F174) -> 4.04274838
B166: 162 | C166: 0.8360335795 | D166: 8.360335795 | F166: 5.565941877
B167: 163 | C167: 0.5683047971 | D167: 5.683047971 | F167: 1.669125009
B168: 164 | C168: 0.1918358162 | D168: 1.918358162 | F168: 5.297268008
B169: 165 | C169: 0.7275080026 | D169: 7.275080026 | F169: 6.079612133
B170: 166 | C170: 0.6519454921 | D170: 6.519454921 | F170: 0.09921828164
B171: 167 | C171: 0.656261299 | D171: 6.56261299 | F171: 9.307654509
B172: 168 | C172: 0.02650410343 | D172: 0.2650410343 | F172: 7.293817941
B173: 169 | C173: 0.1456464476 | D173: 1.456464476 | F173: 0.3252004071
B174: 170 | C174: 0.1749649017 | D174: 1.749649017 | F174: 0.8663108594
B175: 171 | C175: 0.02235110368 | D175: 0.2235110368 | F175: 6.382205057 | H175: =VARPA(F175:F184) -> 8.302410171 | I175: =VARA(F175:F184) -> 9.22490019 | L175: =AVERAGE(F175:F184) -> 6.082793756
B176: 172 | C176: 0.202277326 | D176: 2.02277326 | F176: 6.397788866
B177: 173 | C177: 0.3275847292 | D177: 3.275847292 | F177: 4.747646019
B178: 174 | C178: 0.2987282307 | D178: 2.987282307 | F178: 5.159189641
B179: 175 | C179: 0.7644127229 | D179: 7.644127229 | F179: 9.87810475
B180: 176 | C180: 0.08039586271 | D180: 0.8039586271 | F180: 9.585065295
B181: 177 | C181: 0.3026436391 | D181: 3.026436391 | F181: 2.11785217
B182: 178 | C182: 0.2972453478 | D182: 2.972453478 | F182: 8.935809703
B183: 179 | C183: 0.1725650116 | D183: 1.725650116 | F183: 6.923171662
B184: 180 | C184: 0.8569274727 | D184: 8.569274727 | F184: 0.7011043975
B185: 181 | C185: 0.9870849112 | D185: 9.870849112 | F185: 5.549911065 | H185: =VARPA(F185:F194) -> 8.12390505 | I185: =VARA(F185:F194) -> 9.026561167 | L185: =AVERAGE(F185:F194) -> 6.094174297
B186: 182 | C186: 0.7480650475 | D186: 7.480650475 | F186: 9.22432361
B187: 183 | C187: 0.09344215826 | D187: 0.9344215826 | F187: 6.809307905
B188: 184 | C188: 0.2913658966 | D188: 2.913658966 | F188: 7.580202503
B189: 185 | C189: 0.6495373553 | D189: 6.495373553 | F189: 8.100830175
B190: 186 | C190: 0.05551668617 | D190: 0.5551668617 | F190: 2.150247927
B191: 187 | C191: 0.2781843188 | D191: 2.781843188 | F191: 9.459789135
B192: 188 | C192: 0.3109832213 | D192: 3.109832213 | F192: 1.435178418
B193: 189 | C193: 0.3928703712 | D193: 3.928703712 | F193: 2.614191178
B194: 190 | C194: 0.3084770188 | D194: 3.084770188 | F194: 8.017761058
B195: 191 | C195: 0.09030997337 | D195: 0.9030997337 | F195: 9.942607036 | H195: =VARPA(F195:F204) -> 13.62671846 | I195: =VARA(F195:F204) -> 15.14079829 | L195: =AVERAGE(F195:F204) -> 5.049644122
B196: 192 | C196: 0.4876800977 | D196: 4.876800977 | F196: 9.567177148
B197: 193 | C197: 0.7687710334 | D197: 7.687710334 | F197: 0.7826198628
B198: 194 | C198: 0.2978382755 | D198: =C198*10 -> 2.978382755 | F198: 7.213184008
B199: 195 | C199: 0.2535825046 | D199: 2.535825046 | F199: 0.02559029525
B200: 196 | C200: 0.2109326573 | D200: 2.109326573 | F200: 4.657934451
... 4804 more rows

Sheet N=99,100
H1: 分散 | I1: 不偏分散
H2: N=100 | I2: N=99 | L2: N=100
G3: 全数の分散値 | H3: N=100での平均値 | I3: N=99での平均値 | K3: 全数の平均値
B4: No | C4: 乱数 | D4: 乱数X10 | F4: 対象数列 | G4: =VARPA(F5:F5004) -> 8.204563999 | H4: =AVERAGE(H5:H5004) -> 8.128679549 | I4: =AVERAGE(I5:I5005) -> 8.210787423 | K4: =AVERAGE(F5:F5004) -> 5.003521473 | L4: =AVERAGE(L5:L5004) -> 5.003521473
B5: 1 | C5: =RAND() -> 0.3651689349 | D5: =C5*10 -> 3.651689349 | F5: 0.3606131286 | H5: =VARPA(F5:F104) -> 8.997500747 | I5: =VARA(F5:F104) -> 9.088384593 | L5: =AVERAGE(F5:F104) -> 4.971431296
B6: 2 | C6: 0.4911404889 | D6: =C6*10 -> 4.911404889 | F6: 1.64020228
B7: 3 | C7: 0.05278326573 | D7: 0.5278326573 | F7: 7.169798396
B8: 4 | C8: 0.6111041446 | D8: 6.111041446 | F8: 5.948935302
B9: 5 | C9: 0.6725987465 | D9: 6.725987465 | F9: 4.781828395
B10: 6 | C10: 0.5530660826 | D10: 5.530660826 | F10: 6.902315005
B11: 7 | C11: 0.2636955877 | D11: 2.636955877 | F11: 2.532419652
B12: 8 | C12: 0.3302283233 | D12: 3.302283233 | F12: 0.4154564982
B13: 9 | C13: 0.4968474093 | D13: 4.968474093 | F13: 9.69947076
B14: 10 | C14: 0.6392541186 | D14: 6.392541186 | F14: 9.079578018
B15: 11 | C15: 0.6507180981 | D15: 6.507180981 | F15: 3.252470707
B16: 12 | C16: 0.02183592759 | D16: 0.2183592759 | F16: 2.28475674
B17: 13 | C17: 0.6355840785 | D17: 6.355840785 | F17: 3.583260292
B18: 14 | C18: 0.1621973406 | D18: 1.621973406 | F18: 9.093389833
B19: 15 | C19: 0.7578041931 | D19: 7.578041931 | F19: 7.737104488
B20: 16 | C20: 0.1680070928 | D20: 1.680070928 | F20: 8.67113877
B21: 17 | C21: 0.3305202921 | D21: 3.305202921 | F21: 9.905335461
B22: 18 | C22: 0.176695538 | D22: 1.76695538 | F22: 3.773162664
B23: 19 | C23: 0.1102689153 | D23: 1.102689153 | F23: 3.738976407
B24: 20 | C24: 0.186683416 | D24: 1.86683416 | F24: 1.953315929
B25: 21 | C25: 0.5082823816 | D25: 5.082823816 | F25: 2.070995305
B26: 22 | C26: 0.3322187186 | D26: 3.322187186 | F26: 6.086079172
B27: 23 | C27: 0.3574978874 | D27: 3.574978874 | F27: 3.034440692
B28: 24 | C28: 0.1213885222 | D28: 1.213885222 | F28: 8.256985628
B29: 25 | C29: 0.5300176378 | D29: 5.300176378 | F29: 1.228588441
B30: 26 | C30: 0.8157658464 | D30: 8.157658464 | F30: 9.900651733
B31: 27 | C31: 0.5535203844 | D31: 5.535203844 | F31: 2.617992316
B32: 28 | C32: 0.9352975037 | D32: 9.352975037 | F32: 3.528751556
B33: 29 | C33: 0.3806924347 | D33: 3.806924347 | F33: 6.333096746
B34: 30 | C34: 0.07712938998 | D34: 0.7712938998 | F34: 5.426732579
B35: 31 | C35: 0.8988733684 | D35: 8.988733684 | F35: 9.801566748
B36: 32 | C36: 0.8882002922 | D36: 8.882002922 | F36: 6.611453274
B37: 33 | C37: 0.05796347471 | D37: 0.5796347471 | F37: 4.59205865
B38: 34 | C38: 0.1023624032 | D38: 1.023624032 | F38: 4.132223769
B39: 35 | C39: 0.2962839747 | D39: 2.962839747 | F39: 5.982733741
B40: 36 | C40: 0.8534368808 | D40: 8.534368808 | F40: 5.939048042
B41: 37 | C41: 0.7476473987 | D41: 7.476473987 | F41: 4.536124488
B42: 38 | C42: 0.7819716428 | D42: 7.819716428 | F42: 1.448580258
B43: 39 | C43: 0.6348065116 | D43: 6.348065116 | F43: 4.897128315
B44: 40 | C44: 0.8427549594 | D44: 8.427549594 | F44: 5.565995255
B45: 41 | C45: 0.01795415881 | D45: 0.1795415881 | F45: 7.207322472
B46: 42 | C46: 0.5349019768 | D46: 5.349019768 | F46: 0.1052947212
B47: 43 | C47: 0.4497087838 | D47: 4.497087838 | F47: 6.7167037
B48: 44 | C48: 0.09665788842 | D48: 0.9665788842 | F48: 0.1358704475
B49: 45 | C49: 0.1077509109 | D49: 1.077509109 | F49: 1.641654319
B50: 46 | C50: 0.933588379 | D50: 9.33588379 | F50: 6.671509899
B51: 47 | C51: 0.7131738628 | D51: 7.131738628 | F51: 9.314162902
B52: 48 | C52: 0.4830579906 | D52: 4.830579906 | F52: 7.056542673
B53: 49 | C53: 0.7487987976 | D53: 7.487987976 | F53: 1.025792837
B54: 50 | C54: 0.2746633424 | D54: 2.746633424 | F54: 3.129846896
B55: 51 | C55: 0.6774071302 | D55: 6.774071302 | F55: 8.885752261
B56: 52 | C56: 0.06291810787 | D56: 0.6291810787 | F56: 5.794045025
B57: 53 | C57: 0.4719614085 | D57: 4.719614085 | F57: 1.276417954
B58: 54 | C58: 0.8548885127 | D58: 8.548885127 | F58: 5.698923189
B59: 55 | C59: 0.2180121362 | D59: 2.180121362 | F59: 6.834225841
B60: 56 | C60: 0.4785049084 | D60: 4.785049084 | F60: 1.907121772
B61: 57 | C61: 0.5737277748 | D61: 5.737277748 | F61: 1.543908291
B62: 58 | C62: 0.1730993849 | D62: 1.730993849 | F62: 7.991836239
B63: 59 | C63: 0.1175230233 | D63: 1.175230233 | F63: 3.666580494
B64: 60 | C64: 0.03309328467 | D64: 0.3309328467 | F64: 1.684008683
B65: 61 | C65: 0.007563969877 | D65: 0.07563969877 | F65: 2.532165252
B66: 62 | C66: 0.3950048695 | D66: 3.950048695 | F66: 0.03880098675
B67: 63 | C67: 0.19309227 | D67: 1.9309227 | F67: 4.291173854
B68: 64 | C68: 0.4570067643 | D68: 4.570067643 | F68: 4.196099813
B69: 65 | C69: =RAND() -> 0.7678501336 | D69: 7.678501336 | F69: 4.051907012
B70: 66 | C70: 0.6612352353 | D70: =C70*10 -> 6.612352353 | F70: 1.324415366
B71: 67 | C71: 0.5418675491 | D71: 5.418675491 | F71: 7.104866834
B72: 68 | C72: 0.5850070869 | D72: 5.850070869 | F72: 1.232366052
B73: 69 | C73: 0.1989067736 | D73: 1.989067736 | F73: 4.448089801
B74: 70 | C74: 0.2550512142 | D74: 2.550512142 | F74: 0.206076154
B75: 71 | C75: 0.2576194032 | D75: 2.576194032 | F75: 4.604105762
B76: 72 | C76: 0.5645700935 | D76: 5.645700935 | F76: 3.933249205
B77: 73 | C77: 0.5583718855 | D77: 5.583718855 | F77: 2.956620542
B78: 74 | C78: 0.990893421 | D78: 9.90893421 | F78: 2.657909005
B79: 75 | C79: 0.9763709421 | D79: 9.763709421 | F79: 1.324691063
B80: 76 | C80: 0.3133445568 | D80: 3.133445568 | F80: 8.468941382
B81: 77 | C81: 0.5113901262 | D81: 5.113901262 | F81: 8.147715241
B82: 78 | C82: 0.4943071188 | D82: 4.943071188 | F82: 4.077094261
B83: 79 | C83: 0.9245579974 | D83: 9.245579974 | F83: 8.365987175
B84: 80 | C84: 0.2671273888 | D84: 2.671273888 | F84: 9.836458096
B85: 81 | C85: 0.2308866646 | D85: 2.308866646 | F85: 6.411547927
B86: 82 | C86: 0.9114325691 | D86: 9.114325691 | F86: 3.871843916
B87: 83 | C87: 0.7780227389 | D87: 7.780227389 | F87: 9.021677049
B88: 84 | C88: 0.4201769397 | D88: 4.201769397 | F88: 7.990187587
B89: 85 | C89: 0.02626169867 | D89: 0.2626169867 | F89: 9.633700422
B90: 86 | C90: 0.9204062488 | D90: 9.204062488 | F90: 2.031880974
B91: 87 | C91: 0.2129044357 | D91: 2.129044357 | F91: 3.532983354
B92: 88 | C92: 0.9970073319 | D92: 9.970073319 | F92: 9.472263737
B93: 89 | C93: 0.8591036717 | D93: 8.591036717 | F93: 0.5730497864
B94: 90 | C94: 0.9002771326 | D94: 9.002771326 | F94: 0.2298383618
B95: 91 | C95: 0.4689731699 | D95: 4.689731699 | F95: 9.417049934
B96: 92 | C96: 0.9947177217 | D96: 9.947177217 | F96: 6.082050268
B97: 93 | C97: 0.4336175204 | D97: 4.336175204 | F97: 6.074933707
B98: 94 | C98: 0.1048937205 | D98: 1.048937205 | F98: 0.1688354
B99: 95 | C99: 0.7960992267 | D99: 7.960992267 | F99: 8.032002279
B100: 96 | C100: 0.8823781907 | D100: 8.823781907 | F100: 9.909059536
B101: 97 | C101: 0.7108086382 | D101: 7.108086382 | F101: 9.896480936
B102: 98 | C102: 0.1263262791 | D102: 1.263262791 | F102: 7.660815527
B103: 99 | C103: 0.5772647489 | D103: 5.772647489 | F103: 4.985898141
B104: 100 | C104: 0.9831982698 | D104: 9.831982698 | F104: 5.546021878
B105: 101 | C105: 0.3866854953 | D105: 3.866854953 | F105: 7.877107997 | H105: =VARPA(F105:F204) -> 8.168795951 | I105: =VARA(F105:F204) -> 8.251309041 | L105: =AVERAGE(F105:F204) -> 5.13142183
B106: 102 | C106: 0.2863985938 | D106: 2.863985938 | F106: 9.159855032
B107: 103 | C107: 0.6611220539 | D107: 6.611220539 | F107: 4.337305752
B108: 104 | C108: 0.1382173483 | D108: 1.382173483 | F108: 5.348155345
B109: 105 | C109: 0.2919629124 | D109: 2.919629124 | F109: 2.34893769
B110: 106 | C110: 0.5585099473 | D110: 5.585099473 | F110: 8.551311135
B111: 107 | C111: 0.8218146342 | D111: 8.218146342 | F111: 0.9586217823
B112: 108 | C112: 0.6909600525 | D112: 6.909600525 | F112: 7.721493459
B113: 109 | C113: 0.4443944716 | D113: 4.443944716 | F113: 6.743101524
B114: 110 | C114: 0.7947953922 | D114: 7.947953922 | F114: 8.415858717
B115: 111 | C115: 0.9295657567 | D115: 9.295657567 | F115: 1.916171591
B116: 112 | C116: 0.5799686623 | D116: 5.799686623 | F116: 1.278170589
B117: 113 | C117: 0.6950146823 | D117: 6.950146823 | F117: 0.34347174
B118: 114 | C118: 0.364915603 | D118: 3.64915603 | F118: 2.638023416
B119: 115 | C119: 0.9123905132 | D119: 9.123905132 | F119: 5.305924005
B120: 116 | C120: 0.4080381743 | D120: 4.080381743 | F120: 4.556313092
B121: 117 | C121: 0.2701173925 | D121: 2.701173925 | F121: 3.54054044
B122: 118 | C122: 0.5965897021 | D122: 5.965897021 | F122: 8.856896989
B123: 119 | C123: 0.9522829482 | D123: 9.522829482 | F123: 4.258652686
B124: 120 | C124: 0.5362058049 | D124: 5.362058049 | F124: 0.5001419125
B125: 121 | C125: 0.287902174 | D125: 2.87902174 | F125: 6.628226355
B126: 122 | C126: 0.678909667 | D126: 6.78909667 | F126: 4.654292817
B127: 123 | C127: 0.2591025312 | D127: 2.591025312 | F127: 2.497563082
B128: 124 | C128: 0.7235825895 | D128: 7.235825895 | F128: 9.185955427
B129: 125 | C129: 0.7190416016 | D129: 7.190416016 | F129: 4.094764056
B130: 126 | C130: 0.943624421 | D130: 9.43624421 | F130: 7.525797913
B131: 127 | C131: 0.6194790233 | D131: 6.194790233 | F131: 8.7224956
B132: 128 | C132: 0.8953846159 | D132: 8.953846159 | F132: 7.548859086
B133: 129 | C133: =RAND() -> 0.0285118029 | D133: 0.285118029 | F133: 1.803157358
B134: 130 | C134: 0.3994911874 | D134: =C134*10 -> 3.994911874 | F134: 7.923146415
B135: 131 | C135: 0.07824150948 | D135: 0.7824150948 | F135: 4.960350868
B136: 132 | C136: 0.8641578294 | D136: 8.641578294 | F136: 1.771157779
B137: 133 | C137: 0.9650613617 | D137: 9.650613617 | F137: 7.185755998
B138: 134 | C138: 0.9429321521 | D138: 9.429321521 | F138: 2.593360751
B139: 135 | C139: 0.3117596953 | D139: 3.117596953 | F139: 5.361276421
B140: 136 | C140: 0.5171007449 | D140: 5.171007449 | F140: 6.753291326
B141: 137 | C141: 0.8671063051 | D141: 8.671063051 | F141: 6.703250222
B142: 138 | C142: 0.6416744939 | D142: 6.416744939 | F142: 0.1055298676
B143: 139 | C143: 0.6698103763 | D143: 6.698103763 | F143: 4.885161284
B144: 140 | C144: 0.9868921068 | D144: 9.868921068 | F144: 3.809449429
B145: 141 | C145: 0.1336638254 | D145: 1.336638254 | F145: 6.38848542
B146: 142 | C146: 0.5713203088 | D146: 5.713203088 | F146: 6.696816886
B147: 143 | C147: 0.8920336628 | D147: 8.920336628 | F147: 3.957562048
B148: 144 | C148: 0.4948947953 | D148: 4.948947953 | F148: 9.445936035
B149: 145 | C149: 0.363286635 | D149: 3.63286635 | F149: 3.27066231
B150: 146 | C150: 0.4513074271 | D150: 4.513074271 | F150: 2.419490075
B151: 147 | C151: 0.3153011081 | D151: 3.153011081 | F151: 8.248647079
B152: 148 | C152: 0.1130856199 | D152: 1.130856199 | F152: 1.028657552
B153: 149 | C153: 0.7404093482 | D153: 7.404093482 | F153: 3.750162114
B154: 150 | C154: 0.9387395848 | D154: 9.387395848 | F154: 2.685579272
B155: 151 | C155: 0.282024155 | D155: 2.82024155 | F155: 9.479611162
B156: 152 | C156: 0.7580235569 | D156: 7.580235569 | F156: 4.155449688
B157: 153 | C157: 0.2638629184 | D157: 2.638629184 | F157: 6.624252877
B158: 154 | C158: 0.9534772575 | D158: 9.534772575 | F158: 7.676367847
B159: 155 | C159: 0.2401847722 | D159: 2.401847722 | F159: 7.69367918
B160: 156 | C160: 0.0397838399 | D160: 0.397838399 | F160: 4.801926559
B161: 157 | C161: 0.1558719424 | D161: 1.558719424 | F161: 2.490508977
B162: 158 | C162: 0.5271045996 | D162: 5.271045996 | F162: 4.867107861
B163: 159 | C163: 0.2168820342 | D163: 2.168820342 | F163: 3.49314471
B164: 160 | C164: 0.1259977005 | D164: 1.259977005 | F164: 0.4791763675
B165: 161 | C165: 0.7443178188 | D165: 7.443178188 | F165: 3.013442707
B166: 162 | C166: 0.5149864205 | D166: 5.149864205 | F166: 6.459517986
B167: 163 | C167: 0.2262121914 | D167: 2.262121914 | F167: 9.889553088
B168: 164 | C168: 0.2361139165 | D168: 2.361139165 | F168: 2.662775906
B169: 165 | C169: 0.9002574571 | D169: 9.002574571 | F169: 3.669457059
B170: 166 | C170: 0.408650491 | D170: 4.08650491 | F170: 9.088671845
B171: 167 | C171: 0.3503496635 | D171: 3.503496635 | F171: 7.86558075
B172: 168 | C172: 0.8818345628 | D172: 8.818345628 | F172: 1.307178279
B173: 169 | C173: 0.797442968 | D173: 7.97442968 | F173: 1.968342139
B174: 170 | C174: 0.7998401764 | D174: 7.998401764 | F174: 9.218301062
B175: 171 | C175: 0.9813949142 | D175: 9.813949142 | F175: 0.165716269
B176: 172 | C176: 0.1973822402 | D176: 1.973822402 | F176: 3.281146981
B177: 173 | C177: 0.7603368338 | D177: 7.603368338 | F177: 9.466413421
B178: 174 | C178: 0.8901812223 | D178: 8.901812223 | F178: 3.718662708
B179: 175 | C179: 0.2079707287 | D179: 2.079707287 | F179: 9.325554177
B180: 176 | C180: 0.5566736981 | D180: 5.566736981 | F180: 9.660627237
B181: 177 | C181: 0.7235920234 | D181: 7.235920234 | F181: 7.477771167
B182: 178 | C182: 0.1697290313 | D182: 1.697290313 | F182: 4.406230467
B183: 179 | C183: 0.4034223688 | D183: 4.034223688 | F183: 4.963385671
B184: 180 | C184: 0.8630988163 | D184: 8.630988163 | F184: 4.781458504
B185: 181 | C185: 0.8354358746 | D185: 8.354358746 | F185: 8.500149036
B186: 182 | C186: 0.8327443853 | D186: 8.327443853 | F186: 8.016473299
B187: 183 | C187: 0.4123195264 | D187: 4.123195264 | F187: 9.131784109
B188: 184 | C188: 0.4417309695 | D188: 4.417309695 | F188: 7.96872657
B189: 185 | C189: 0.0173794816 | D189: 0.173794816 | F189: 1.671792295
B190: 186 | C190: 0.5886074401 | D190: 5.886074401 | F190: 5.172708248
B191: 187 | C191: 0.5358099687 | D191: 5.358099687 | F191: 4.444915866
B192: 188 | C192: 0.5529660648 | D192: 5.529660648 | F192: 8.603056497
B193: 189 | C193: 0.912910412 | D193: 9.12910412 | F193: 3.693472376
B194: 190 | C194: 0.9928051688 | D194: 9.928051688 | F194: 0.1265801654
B195: 191 | C195: 0.06973189511 | D195: 0.6973189511 | F195: 1.192143238
B196: 192 | C196: 0.8490641217 | D196: 8.490641217 | F196: 9.124415042
B197: 193 | C197: =RAND() -> 0.6317510455 | D197: 6.317510455 | F197: 1.702303888
B198: 194 | C198: 0.359696092 | D198: =C198*10 -> 3.59696092 | F198: 3.036530271
B199: 195 | C199: 0.694717048 | D199: 6.94717048 | F199: 7.6984239
B200: 196 | C200: 0.2332988844 | D200: 2.332988844 | F200: 4.832819677
... 4804 more rows
